fUSD/lending_fUSD_20240505
["ID","MTS","AMOUNT","RATE_DAILY","PERIOD"]
[325438251,1714891690590,-2253.45141791,0.00041917,31]
[325438252,1714891690632,-1246.92537569,0.00041917,31]
[325438253,1714891690675,-681.58470311,0.00041917,31]
[325438254,1714891690718,-827.04592215,0.00041917,31]
[325438255,1714891690762,-5700.51890667,0.00041917,31]
[325438256,1714891690805,-657.46623039,0.00041917,31]
[325438257,1714891690851,-7218.72967096,0.00041917,31]
[325438258,1714891690897,-4673.81268542,0.00041917,31]
[325438259,1714891690940,-6815.380795,0.00041917,31]
[325438260,1714891690983,-3644.1791192,0.00041917,31]
[325438261,1714891691027,-1436.4245781,0.00041917,31]
[325438262,1714891691067,-716.5992767,0.00041917,31]
[325438263,1714891691109,-772.28099693,0.00041917,31]
[325438264,1714891691154,-413.0816434,0.00041917,31]
[325438265,1714891691198,-1076.20364517,0.00041917,31]
[325438266,1714891691240,-656.33124298,0.00041917,31]
[325438267,1714891691281,-641.07361031,0.00041917,31]
[325438268,1714891691322,-896.85006217,0.00041917,31]
[325438269,1714891691363,-2784.57844516,0.00041917,31]
[325438270,1714891691407,-1999.43594352,0.00041917,31]
[325438271,1714891691448,-9267.98716137,0.00041917,31]
[325438272,1714891691490,-920.49495857,0.00041917,31]
[325438273,1714891691534,-4926.63320682,0.00041917,31]
[325438274,1714891691576,-4431.83053754,0.00041917,31]
[325438275,1714891691817,-5526.60755571,0.00041917,31]
[325438276,1714891691859,-2198.63356681,0.00041917,31]
[325438277,1714891691899,-573.59345776,0.00041917,31]
[325438278,1714891691940,-5119.60080835,0.00041917,31]
[325438279,1714891691981,-1465.92899614,0.00041917,31]
[325438280,1714891692022,-1511.44604806,0.00041917,31]
[325438281,1714891692062,-10518.80173218,0.00041917,31]
[325438282,1714891692101,-682.70105771,0.00041917,31]
[325438283,1714891692139,-944.69542708,0.00041917,31]
[325438284,1714891692176,-1715.48072606,0.00041917,31]
[325438285,1714891692217,-17056.94448373,0.00041917,31]
[325438286,1714891692257,-668.48908605,0.00041917,31]
[325438287,1714891692299,-4653.87204175,0.00041917,31]
[325438288,1714891692337,-898.34213501,0.00041917,31]
[325438289,1714891692375,-1581.82554894,0.00041917,31]
[325438290,1714891692414,-1191.78723155,0.00041917,31]
[325438291,1714891692450,-6078.73953282,0.00041917,31]
[325438292,1714891692487,-690.67877318,0.00041917,31]
[325438293,1714891692530,-1106.94,0.00041917,31]
[325438294,1714891692571,-921.52956616,0.00041917,31]
[325438295,1714891692610,-7483.83608601,0.00041917,31]
[325438296,1714891692647,-15225.21137592,0.00041917,31]
[325438297,1714891708591,-157.30064801,0.00040108,30]
[325438298,1714891708667,-154.56697158,0.00040368,30]
[325438299,1714891708740,-154.56697158,0.00040595,30]
[325438300,1714891708780,-160.57942081,0.00040746,30]
[325438301,1714891709086,-157.30064801,0.00040769,30]
[325438302,1714891709128,-154.56697158,0.00040774,30]
[325438303,1714891709167,-157.3006481,0.00040791,30]
[325438304,1714891709208,-154.56697179,0.00040798,30]
[325438305,1714891709280,-160.57942093,0.00040926,30]
[325438306,1714891709383,-4472.02,0.00041643,30]
[325438307,1714891709419,-1683.21,0.00041643,30]
[325438308,1714891709458,-987.43,0.00041643,30]
[325438309,1714891709499,-3465.45,0.00041643,30]
[325438310,1714891709540,-671.8,0.00041643,30]
[325438311,1714891709581,-637.14,0.00041643,30]
[325438312,1714891709621,-595.43,0.00041643,30]
[325438313,1714891709664,-4702.27,0.00041643,30]
[325438314,1714891709703,-1307.37,0.00041643,30]
[325438315,1714891709743,-813.72,0.00041643,30]
[325438316,1714891709783,-3102.24,0.00041643,30]
[325438317,1714891709822,-3893.67,0.00041643,30]
[325438318,1714891709866,-1239.15,0.00041643,30]
[325438319,1714891709907,-1238.29,0.00041643,30]
[325438320,1714891709946,-16850.48,0.00041643,30]
[325438321,1714891709984,-749.37,0.00041643,30]
[325438322,1714891710026,-966.88,0.00041643,30]
[325438323,1714891710066,-3341.14,0.00041643,30]
[325438324,1714891710104,-820.82,0.00041643,30]
[325438325,1714891710146,-575.31,0.00041643,30]
[325438326,1714891710189,-1397.96,0.00041643,30]
[325438327,1714891710230,-575.95,0.00041643,30]
[325438328,1714891710270,-1931.76,0.00041643,30]
[325438329,1714891710311,-3455.36979097,0.00041917,31]
[325438330,1714891710350,-3642.65592303,0.00041917,31]
[325438331,1714891710390,-1140.91761708,0.00041917,31]
[325438332,1714891710430,-1445.0950631,0.00041917,31]
[325438333,1714891710472,-558.38272783,0.00041917,31]
[325438334,1714891710513,-3901.05280566,0.00041917,31]
[325438335,1714891710556,-917.49877758,0.00041917,31]
[325438336,1714891710598,-638.67239271,0.00041917,31]
[325438337,1714891710645,-11469.79560152,0.00041917,31]
[325438338,1714891710685,-970.60877911,0.00041917,31]
[325438339,1714891710725,-1782.94344996,0.00041917,31]
[325438340,1714891710765,-847.05725859,0.00041917,31]
[325438341,1714891710808,-4224.86972432,0.00041917,31]
[325438342,1714891710850,-550.17,0.00041917,31]
[325438343,1714891710890,-1671.09,0.00041917,31]
[325438344,1714891710932,-777.39,0.00041917,31]
[325438345,1714891710974,-7023.46411404,0.00041917,31]
[325438346,1714891711012,-3035.76615747,0.00041917,31]
[325438347,1714891711056,-1370.68789759,0.00041917,31]
[325438348,1714891711101,-1239.37441319,0.00041917,31]
[325438349,1714891711143,-3202.67468963,0.00041917,31]
[325438350,1714891711185,-4801.53190835,0.00041917,31]
[325438351,1714891711226,-754.97402625,0.00041917,31]
[325438352,1714891711267,-9275.90641726,0.00041917,31]
[325438353,1714891711305,-987.04705482,0.00041917,31]
[325438354,1714891711345,-11979.15,0.00041917,31]
[325438355,1714891711384,-2036.42,0.00041917,31]
[325438356,1714891711424,-861.40329506,0.00041917,31]
[325438357,1714891711461,-1915.79174989,0.00041917,31]
[325438358,1714891711500,-2998.28146795,0.00041917,31]
[325438359,1714891711539,-1719.70969001,0.00041917,31]
[325438360,1714891711577,-3790.25650465,0.00041917,31]
[325438361,1714891711617,-15112.47721402,0.00041917,31]
[325438362,1714891711659,-1239.45868976,0.00041917,31]
[325438363,1714891711699,-804.04920768,0.00041917,31]
[325438364,1714891711738,-4808.0832694,0.00041917,31]
[325438365,1714891711778,-526.75404453,0.00041917,31]
[325438366,1714891711819,-9328.75989969,0.00041917,31]
[325438367,1714891711860,-1267.6,0.00041917,31]
[325438368,1714891711899,-638.18922642,0.00041917,31]
[325438369,1714891711938,-782.13237942,0.00041917,31]
[325438370,1714891711979,-12984.26904784,0.00041917,31]
[325438371,1714891712021,-4264.49041904,0.00041917,31]
[325438372,1714891712061,-773.68971646,0.00041917,31]
[325438373,1714891712101,-3578.4109076,0.00041917,31]
[325438374,1714891712140,-737.07177432,0.00041917,31]
[325438375,1714891712181,-55324.07235417,0.00041917,31]
[325438376,1714891712237,-1015.8288755,0.00041917,31]
[325438377,1714891712279,-622.55955431,0.00041917,31]
[325438378,1714891712318,-1659.89654708,0.00041917,31]
[325438379,1714891712357,-1112.82869358,0.00041917,31]
[325438380,1714891712397,-4919.06662943,0.00041917,31]
[325438381,1714891712438,-1089.90923966,0.00041917,31]
[325438382,1714891712480,-2005.96749762,0.00041917,31]
[325438383,1714891712520,-5942.41638414,0.00041917,31]
[325438384,1714891712561,-1246.20495373,0.00041917,31]
[325438385,1714891712601,-938.9864453,0.00041917,31]
[325438386,1714891712640,-9050.02867897,0.00041917,31]
[325438387,1714891712678,-993.04002644,0.00041917,31]
[325438388,1714891712719,-3295.12916358,0.00041917,31]
[325438389,1714891712759,-1400.24501836,0.00041917,31]
[325438390,1714891712800,-818.00273764,0.00041917,31]
[325438391,1714891712840,-1307.92806727,0.00041917,31]
[325438392,1714891712881,-1644.01937533,0.00041917,31]
[325438393,1714891712923,-3981.84192523,0.00041917,31]
[325438394,1714891712964,-11883.01305621,0.00041917,31]
[325438395,1714891713005,-2285.01962154,0.00041917,31]
[325438396,1714891713051,-590.88826608,0.00041917,31]
[325438397,1714891713093,-5913.86,0.00041917,31]
[325438398,1714891713133,-1021.02238146,0.00041917,31]
[325438399,1714891713174,-834.35899999,0.00041917,31]
[325438400,1714891713216,-1036.68916902,0.00041917,31]
[325438401,1714891713600,-863.0527072,0.00041917,31]
[325438402,1714891713642,-2795.14201519,0.00041917,31]
[325438403,1714891713683,-4832.65590938,0.00041917,31]
[325438404,1714891713724,-14668.26144294,0.00041917,31]
[325438405,1714891713764,-506.51177499,0.00041917,31]
[325438406,1714891713805,-511.70332904,0.00041917,31]
[325438407,1714891713849,-637.80857553,0.00041917,31]
[325438408,1714891713891,-4068.90026298,0.00041917,31]
[325438409,1714891713934,-1184.77708189,0.00041917,31]
[325438410,1714891713974,-758.66625958,0.00041917,31]
[325438411,1714891714027,-605.93106213,0.00041917,31]
[325438412,1714891714071,-1002.52356951,0.00041917,31]
[325438413,1714891714116,-2872.03335916,0.00041917,31]
[325438414,1714891714157,-12686.64396223,0.00041917,31]
[325438415,1714891714197,-1361.00120579,0.00041917,31]
[325438416,1714891714238,-961.86677017,0.00041917,31]
[325438417,1714891714279,-1975.29191115,0.00041917,31]
[325438418,1714891714320,-506.38280383,0.00041917,31]
[325438419,1714891714359,-1066.36254497,0.00041917,31]
[325438420,1714891714401,-625.91730715,0.00041917,31]
[325438421,1714891714441,-6165.17089032,0.00041917,31]
[325438422,1714891714482,-15506.94328564,0.00041917,31]
[325438423,1714891714523,-1647.03,0.00041917,31]
[325438424,1714891714566,-2755.94738707,0.00041917,31]
[325438425,1714891714608,-5233.65,0.00041917,31]
[325438426,1714891714650,-1391.75770176,0.00041917,31]
[325438427,1714891714690,-723.59,0.00041917,31]
[325438428,1714891714730,-969.42466992,0.00041917,31]
[325438429,1714891714766,-22560.63193878,0.00041917,31]
[325438430,1714891714806,-9866.96721801,0.00041917,31]
[325438431,1714891714847,-931.19558397,0.00041917,31]
[325438432,1714891714889,-2851.29250892,0.00041917,31]
[325438433,1714891714928,-2270.49699881,0.00041917,31]
[325438434,1714891714966,-592.03189886,0.00041917,31]
[325438435,1714891715004,-6025.6316607,0.00041917,31]
[325438436,1714891715045,-1494.23114781,0.00041917,31]
[325438437,1714891715086,-1605.70343311,0.00041917,31]
[325438438,1714891715130,-1875.8404024,0.00041917,31]
[325438439,1714891715169,-535.88145783,0.00041917,31]
[325438440,1714891715209,-711.75982074,0.00041917,31]
[325438441,1714891715247,-527.07057455,0.00041917,31]
[325438442,1714891715287,-5363.73130108,0.00041917,31]
[325438443,1714891715329,-1644.66413399,0.00041917,31]
[325438444,1714891715369,-1323.88548137,0.00041917,31]
[325438445,1714891715411,-602.58328792,0.00041917,31]
[325438446,1714891715452,-3482.62793036,0.00041917,31]
[325438447,1714891715493,-1841.12387313,0.00041917,31]
[325438448,1714891715534,-1029.13597336,0.00041917,31]
[325438449,1714891715576,-37914.52999366,0.00041917,31]
[325438450,1714891715617,-546.20921102,0.00041917,31]
[325438451,1714891715660,-699.15065496,0.00041917,31]
[325438452,1714891715702,-3181.39394624,0.00041917,31]
[325438453,1714891715743,-854.89068879,0.00041917,31]
[325438454,1714891715785,-3587.23339044,0.00041917,31]
[325438455,1714891715828,-1324.26858186,0.00041917,31]
[325438456,1714891715868,-1184.79669295,0.00041917,31]
[325438457,1714891715911,-3641.75944369,0.00041917,31]
[325438458,1714891715955,-4472.12331962,0.00041917,31]
[325438459,1714891715997,-1683.4125984,0.00041917,31]
[325438460,1714891716041,-987.45559284,0.00041917,31]
[325438461,1714891716082,-3465.48313946,0.00041917,31]
[325438462,1714891716123,-671.83804688,0.00041917,31]
[325438463,1714891716163,-637.23759949,0.00041917,31]
[325438464,1714891716208,-595.50633796,0.00041917,31]
[325438465,1714891716254,-4702.2967925,0.00041917,31]
[325438466,1714891716302,-1307.44601051,0.00041917,31]
[325438467,1714891716346,-813.7987054,0.00041917,31]
[325438468,1714891716387,-3102.34884804,0.00041917,31]
[325438469,1714891716427,-3893.90425149,0.00041917,31]
[325438470,1714891716466,-1239.28895297,0.00041917,31]
[325438471,1714891716511,-1238.42796665,0.00041917,31]
[325438472,1714891716555,-16850.54687334,0.00041917,31]
[325438473,1714891716598,-749.5527952,0.00041917,31]
[325438474,1714891716639,-967.02781505,0.00041917,31]
[325438475,1714891716680,-3341.36,0.00041917,31]
[325438476,1714891716721,-820.82,0.00041917,31]
[325438477,1714891716760,-575.44735863,0.00041917,31]
[325438478,1714891716805,-1398.17331146,0.00041917,31]
[325438479,1714891716846,-576.03229389,0.00041917,31]
[325438480,1714891716887,-1931.86862074,0.00041917,31]
[325438481,1714891716928,-50000.0,0.00042,32]
[325438482,1714891716966,-517.55141554,0.00042,120]
[325438483,1714891717006,-1000000.0,0.00042,30]
[325438484,1714891717048,-150.0,0.00042,120]
[325438485,1714891717086,-697.61543546,0.00042,30]
[325438486,1714891717128,-400.0,0.00042,120]
[325438487,1714891717174,-900.0,0.00042,43]
[325438488,1714891717219,-950.0,0.00042,120]
[325438489,1714891717263,-1900.0,0.00042,60]
[325438490,1714891717309,-2025.5352311,0.00042,30]
[325438491,1714891717357,-486.75354479,0.00042,120]
[325438492,1714891717405,-2186.89205808,0.00042,30]
[325438493,1714891717451,-1000.0,0.00042,120]
[325438494,1714891717496,-150.0,0.00042,31]
[325438495,1714891717541,-2000.0,0.00042054,35]
[325438496,1714891717587,-2000.0,0.00042124,90]
[325438497,1714891717635,-810.0,0.0004214,30]
[325438498,1714891717684,-476.0,0.0004214,30]
[325438499,1714891717727,-2000.0,0.00042191,36]
[325438500,1714891717772,-1199.55810702,0.00042192,30]
[325438501,1714891717812,-2000.0,0.00042328,37]
[325438502,1714891717852,-5000.0,0.00042338,30]
[325438503,1714891717896,-2000.0,0.00042465,38]
[325438504,1714891717937,-1000000.0,0.000425,30]
[325438505,1714891718191,-150.0,0.000425,120]
[325438506,1714891718230,-300.0,0.000425,30]
[325438507,1714891718272,-150.0,0.000425,32]
[325438508,1714891718311,-30456.87855194,0.000425,30]
[325438509,1714891718351,-810.0,0.0004257,30]
[325438510,1714891718389,-476.0,0.0004257,30]
[325438511,1714891718432,-756.140347,0.00042602,39]
[325438512,1714891718476,-500000.0,0.0004269,120]
[325438513,1714891718518,-5000.0,0.000428,30]
[325438514,1714891718560,-1026.79169809,0.000429,58]
[325438515,1714891718600,-1026.79169807,0.000429,58]
[325438516,1714891718641,-1026.79169807,0.000429,58]
[325438517,1714891718681,-1026.79169807,0.000429,58]
[325438518,1714891718721,-1026.79169807,0.000429,58]
[325438519,1714891718764,-1026.79169807,0.000429,58]
[325438520,1714891718808,-1026.79169807,0.000429,58]
[325438521,1714891718852,-1026.79169807,0.000429,58]
[325438522,1714891718893,-1026.79169807,0.000429,58]
[325438523,1714891718933,-1026.79169807,0.000429,58]
[325438524,1714891718976,-50000.0,0.00043,33]
[325438525,1714891719019,-900.0,0.00043,44]
[325438526,1714891719064,-725711.63665117,0.00043,30]
[325438527,1714891727881,254.59,0.00026258,120]
[325438528,1714891728008,254.59,0.00029175,120]
[325438529,1714891728954,-254.59,0.00032093,120]
[325438530,1714891729002,-254.59,0.0003501,120]
[325438531,1714891729755,-2237.73,0.00041643,30]
[325438532,1714891729794,-1823.95,0.00041643,30]
[325438533,1714891729832,-1120.17,0.00041643,30]
[325438534,1714891729876,-1812.99,0.00041643,30]
[325438535,1714891729919,-2237.80807337,0.00041917,31]
[325438536,1714891729960,-1824.14646187,0.00041917,31]
[325438537,1714891729999,-1120.21177342,0.00041917,31]
[325438538,1714891730038,-1813.02308796,0.00041917,31]
[325438539,1714891730076,-104183.81479636,0.00042,31]
[325438540,1714891730116,-274288.36334883,0.00043,30]
[325438541,1714891730156,-1000000.0,0.00043,60]
[325438542,1714891730196,-212.31292369,0.00043,120]
[325438543,1714891730236,-500.0,0.00043,120]
[325438544,1714891730275,-150478.51986985,0.00043,30]
[325438545,1714891730315,-150.0,0.00043,120]
[325438546,1714891730354,-2000.0,0.00043,120]
[325438547,1714891730394,-810.0,0.00043,30]
[325438548,1714891730434,-433.75963365,0.00043,30]
[325438549,1714891730474,-150.0,0.00043,32]
[325438550,1714891730515,-359.24104313,0.00043,30]
[325438551,1714891730556,-476.0,0.00043,30]
[325438552,1714891730597,-1038.3694531,0.00043,30]
[325438555,1714891730636,-994.12735841,0.00043333,120]
[325438557,1714891730676,-810.0,0.0004343,30]
[325438560,1714891730715,-476.0,0.0004343,30]
[325438562,1714891730753,-150.0,0.000435,33]
[325438563,1714891730795,-202.93597091,0.0004375,120]
[325438564,1714891730837,-2418.0,0.00043792,99]
[325438565,1714891730876,-5000.0,0.000438,30]
[325438566,1714891730926,-810.0,0.0004386,30]
[325438567,1714891730966,-476.0,0.0004386,30]
[325438568,1714891731009,-1627.85,0.000439,30]
[325438569,1714891731051,-551.66,0.000439,30]
[325438570,1714891731094,-978.76812953,0.000439,120]
[325438571,1714891731136,-46896.97790298,0.00043968,30]
[325438572,1714891731180,-50000.0,0.00044,34]
[325438573,1714891731222,-11960.89812341,0.00044,40]
[325438574,1714891731262,-1007.0,0.00044,120]
[325438575,1714891731299,-1000000.0,0.00044,60]
[325438576,1714891731341,-1000000.0,0.00044,60]
[325438577,1714891731382,-500.0,0.00044,120]
[325438578,1714891731423,-325560.19204953,0.00044,60]
[325438579,1714891738953,-2077.21,0.00041643,30]
[325438580,1714891738994,-3992.99,0.00041643,30]
[325438581,1714891739036,-1229.29,0.00041643,30]
[325438582,1714891739078,-2077.25853552,0.00041917,31]
[325438583,1714891739117,-3993.08077433,0.00041917,31]
[325438584,1714891739158,-1229.42863997,0.00041917,31]
[325438585,1714891739205,-34954.60545246,0.00042,30]
[325438586,1714891739259,-674439.80795047,0.00044,60]
[325438587,1714891739300,-1000000.0,0.00044,60]
[325438588,1714891739342,-1000000.0,0.00044,60]
[325438589,1714891739383,-1000000.0,0.00044,60]
[325438590,1714891739422,-276006.32864725,0.00044,60]
[325438596,1714891832147,-393.7042918,0.00016295,2]
[325438597,1714891832164,-34.01938358,0.00016295,2]
[325438598,1714891832177,-2363.11334746,0.00016296,2]
[325438599,1714891832189,-407.48349287,0.00016296,2]
[325438600,1714891832202,-3130.37442115,0.00016296,2]
[325438601,1714891832219,-148.66712403,0.00016296,2]
[325438602,1714891832231,-438.18514318,0.00016296,2]
[325438603,1714891832246,-246.85402242,0.00016296,2]
[325438604,1714891832259,-3084.72177879,0.00016297,2]
[325438605,1714891832271,-267.83236721,0.00016297,2]
[325438606,1714891832284,-572.20226711,0.00016298,7]
[325438607,1714891832296,-155.0,0.00016299,2]
[325438608,1714891832309,-1267.12778196,0.00016302,2]
[325438609,1714891832322,-150.0,0.00016506,2]
[325438610,1714891832334,-3075.87418959,0.00017255,2]
[325438611,1714891832347,-1268.25303457,0.00017256,2]
[325438612,1714891832380,-309.31034047,0.00017256,2]
[325438613,1714891832395,-865.46028817,0.00017256,2]
[325438614,1714891832474,-317.65,0.00017256,2]
[325438615,1714891832496,-397.30703519,0.00017256,2]
[325438616,1714891832516,-5968.33325027,0.00017256,2]
[325438617,1714891832532,-2054.0,0.000202,2]
[325438618,1714891832549,-155.0,0.000209,2]
[325438619,1714891832564,-258.9,0.00021644,2]
[325438620,1714891832578,-151.39,0.00021644,2]
[325438621,1714891832594,-399.2,0.00022909,2]
[325438622,1714891832608,-2000.0,0.00022974,2]
[325438623,1714891832622,-1852.42,0.00023046,2]
[325438624,1714891832636,-500.0,0.00023071,2]
[325438625,1714891832649,-184.74,0.00023146,2]
[325438626,1714891832663,-1000.0,0.00023202,2]
[325438627,1714891832676,-250.0,0.00023209,2]
[325438628,1714891832690,-906.72,0.00023216,2]
[325438629,1714891832704,-336.05,0.00023228,2]
[325438630,1714891832717,-751.25,0.00023259,2]
[325438631,1714891832731,-321.0,0.00023339,2]
[325438632,1714891832744,-254.59,0.0002334,2]
[325438633,1714891832757,-321.0,0.00023403,2]
[325438634,1714891832772,-250.0,0.00023406,2]
[325438635,1714891832785,-458.15,0.00023409,2]
[325438636,1714891832797,-23900.0,0.00023422,2]
[325438637,1714891832810,-321.0,0.00023467,2]
[325438638,1714891832824,-166.32,0.00023509,2]
[325438639,1714891832836,-250.37,0.00023529,2]
[325438640,1714891832848,-165.31,0.00023529,2]
[325438641,1714891832861,-321.0,0.00023531,2]
[325438642,1714891832874,-250.37,0.00023535,2]
[325438643,1714891832886,-200.0,0.00023539,2]
[325438644,1714891832898,-250.37,0.00023541,2]
[325438645,1714891832911,-250.37,0.00023547,2]
[325438646,1714891832923,-250.37,0.00023554,2]
[325438647,1714891832938,-250.37,0.0002356,2]
[325438648,1714891832950,-250.37,0.00023566,2]
[325438649,1714891832965,-250.37,0.00023572,2]
[325438650,1714891832979,-250.37,0.00023578,2]
[325438651,1714891832993,-250.37,0.00023585,2]
[325438652,1714891833005,-250.37,0.00023591,2]
[325438653,1714891833020,-321.0,0.00023595,2]
[325438654,1714891833034,-250.37,0.00023597,2]
[325438655,1714891833046,-250.37,0.00023603,2]
[325438656,1714891833060,-250.37,0.00023609,2]
[325438657,1714891833073,-250.37,0.00023616,2]
[325438658,1714891833087,-250.37,0.00023622,2]
[325438659,1714891833099,-250.37,0.00023628,2]
[325438660,1714891833112,-250.37,0.00023634,2]
[325438661,1714891833125,-250.37,0.0002364,2]
[325438662,1714891833138,-250.37,0.00023647,2]
[325438663,1714891833151,-321.0,0.00023659,2]
[325438664,1714891833164,-321.0,0.00023723,2]
[325438665,1714891833175,-321.0,0.00023787,2]
[325438666,1714891833189,-321.0,0.00023851,2]
[325438667,1714891833201,-321.0,0.00023915,2]
[325438668,1714891833214,-321.0,0.00023979,2]
[325438669,1714891833227,-321.0,0.00024043,2]
[325438670,1714891833239,-321.0,0.00024107,2]
[325438671,1714891833250,-321.0,0.00024171,2]
[325438672,1714891833262,-321.0,0.00024235,2]
[325438673,1714891833274,-321.0,0.00024299,2]
[325438674,1714891833287,-321.0,0.00024363,2]
[325438675,1714891833298,-321.0,0.00024427,2]
[325438676,1714891833310,-321.0,0.00024491,2]
[325438677,1714891833323,-321.0,0.00024555,2]
[325438678,1714891833336,-184.74,0.00026039,2]
[325438679,1714891833348,-1000.0,0.00026102,2]
[325438680,1714891833360,-2000.0,0.00027,2]
[325438681,1714891833370,-2271.866345,0.0002701,2]
[325438682,1714891833379,-164.02,0.00027068,15]
[325438683,1714891833389,-184.74,0.00028933,2]
[325438684,1714891833400,-1000.0,0.00029002,2]
[325438685,1714891833411,-155.53448638,0.00029035,2]
[325438686,1714891833421,-333.06889411,0.00029035,2]
[325438687,1714891833430,-213.35604663,0.00029398,2]
[325438688,1714891833439,-3723.62397304,0.00029432,2]
[325438689,1714891833452,-6276.37602696,0.00029432,2]
[325438690,1714891833462,-159.82096074,0.000299,2]
[325438691,1714891833472,-160.77,0.00029988,2]
[325438692,1714891833482,-160.77,0.00029988,2]
[325438693,1714891833491,-160.77,0.0002999,2]
[325438694,1714891833501,-5175.72990395,0.00029997,2]
[325438695,1714891833512,-1396.76233974,0.00029997,2]
[325438696,1714891833524,-28413.28756702,0.00029997,2]
[325438697,1714891833534,-307.33112766,0.00029998,2]
[325438698,1714891833543,-155.41962623,0.00029998,2]
[325438699,1714891833554,-2185.16896038,0.00029998,2]
[325438700,1714891833564,-155.55644086,0.00029998,2]
[325438701,1714891833574,-364.13980716,0.00029998,2]
[325438702,1714891833583,-8165.79388967,0.00029998,2]
[325438705,1714891837982,-933.17943233,0.00029432,2]
[325438707,1714891837993,-1813.9176003,0.00029432,2]
[325438708,1714891838005,-356.20397046,0.00029432,2]
[325438709,1714891838084,-6896.69899691,0.00029432,2]
[325438710,1714891838094,-656.3290693,0.00029998,2]
[325438711,1714891838348,-491177.87704103,0.00029998,2]
[325438712,1714891838358,-3508.13550258,0.00029998,2]
[325438713,1714891838367,-6227.01127323,0.00029998,2]
[325438714,1714891838377,-155.69746438,0.00029999,2]
[325438715,1714891838387,-308.04572919,0.00029999,2]
[325438716,1714891838396,-364.04229059,0.00029999,2]
[325438717,1714891838407,-18326.52133183,0.00029999,2]
[325438718,1714891838416,-18388.68681132,0.0003,4]
[325438719,1714891838426,-947.45262075,0.0003,4]
[325438720,1714891838436,-1482.30955306,0.0003,4]
[325438722,1714891838445,-218.38105694,0.0003,4]
[325438724,1714891838454,-335.52942128,0.0003,4]
[325438727,1714891838463,-192648.8618343,0.0003,2]
[325438730,1714891838472,-12651.70154483,0.0003,3]
[325438733,1714891838482,-19354.94169586,0.0003,4]
[325438736,1714891838491,-5677.45044794,0.0003,2]
[325438739,1714891838501,-37775.0,0.00030672,2]
[325438741,1714891838510,-5825.917,0.00030672,2]
[325438744,1714891838519,-5991.493,0.00030672,2]
[325438747,1714891838529,-159.82096066,0.00030676,2]
[325438749,1714891838538,-796.0285883,0.00030752,2]
[325438750,1714891838547,-154.17335256,0.00031073,7]
[325438752,1714891838556,-154.56697158,0.00031116,7]
[325438754,1714891838566,-160.57942081,0.0003124,7]
[325438756,1714891838575,-25649.0,0.00031269,2]
[325438757,1714891838584,-159.82096066,0.00031452,2]
[325438758,1714891838594,-160.57942081,0.00031508,7]
[325438759,1714891838603,-160.57942081,0.00031718,7]
[325438760,1714891838612,-409.68423846,0.00031786,4]
[325438761,1714891838623,-1772.07882358,0.00031786,4]
[325438762,1714891838632,-255.74586642,0.00031786,4]
[325438763,1714891838641,-221.68208965,0.00031786,2]
[325438764,1714891838651,-442.32991682,0.00031786,4]
[325438765,1714891838662,-681.00197,0.00031786,2]
[325438766,1714891838672,-184.74,0.00031826,2]
[325438767,1714891838681,-160.57942081,0.00031832,7]
[325438768,1714891838690,-1000.0,0.00031903,2]
[325438769,1714891838699,-154.56697158,0.00032047,7]
[325438770,1714891838709,-174.05950447,0.00032131,7]
[325438771,1714891838719,-158.32485787,0.00032147,7]
[325438772,1714891838729,-160.57942081,0.00032214,7]
[325438773,1714891838739,-160.57942081,0.00032222,7]
[325438774,1714891838748,-159.82096066,0.00032229,2]
[325438775,1714891838760,-160.57942081,0.00032231,7]
[325438776,1714891838771,-155.99402394,0.00032377,7]
[325438777,1714891838781,-154.56697158,0.00032713,7]
[325438778,1714891838790,-154.66083297,0.00032743,7]
[325438779,1714891838799,-154.56697158,0.00032799,7]
[325438780,1714891838808,-500.0,0.00032876,7]
[325438781,1714891838817,-154.56697158,0.00032876,7]
[325438782,1714891838826,-157.30064801,0.00032876,7]
[325438783,1714891838835,-154.66083297,0.00032905,7]
[325438784,1714891838844,-160.57942081,0.00032911,7]
[325438785,1714891838853,-159.82096066,0.00033005,2]